fUST/lending_fUST_20241126
["ID","MTS","AMOUNT","RATE_DAILY","PERIOD"]
[343441470,1732623051238,-151.0,0.00029651,7]
[343441472,1732623051247,-151.0,0.00029651,7]
[343441474,1732623051257,-151.0,0.00029651,7]
[343441476,1732623051266,-151.0,0.00029651,7]
[343441478,1732623051275,-151.0,0.00029651,7]
[343441480,1732623051284,-151.0,0.00029651,7]
[343441481,1732623051294,-151.0,0.00029651,7]
[343441483,1732623051303,-151.0,0.00029651,7]
[343441485,1732623051313,-151.0,0.00029651,7]
[343441487,1732623051322,-151.0,0.00029651,7]
[343441489,1732623051332,-185.68657,0.00029651,7]
[343441492,1732623051344,-275.633199,0.00029651,7]
[343441493,1732623051354,-275.633199,0.00029651,7]
[343441496,1732623051364,-275.633199,0.00029651,7]
[343441498,1732623051373,-275.633199,0.00029651,7]
[343441500,1732623051382,-275.633199,0.00029651,7]
[343441502,1732623051391,-275.633199,0.00029651,7]
[343441504,1732623051400,-275.633199,0.00029651,7]
[343441506,1732623051409,-275.633199,0.00029651,7]
[343441508,1732623051421,-275.633199,0.00029651,7]
[343441510,1732623051434,-275.633199,0.00029651,7]
[343441513,1732623051447,-275.633199,0.00029651,7]
[343441514,1732623051461,-275.633199,0.00029651,7]
[343441515,1732623051475,-275.633199,0.00029651,7]
[343441516,1732623051488,-275.633199,0.00029651,7]
[343441517,1732623051499,-275.633199,0.00029651,7]
[343441518,1732623051510,-275.633199,0.00029651,7]
[343441519,1732623051521,-275.633199,0.00029651,7]
[343441520,1732623051533,-275.633199,0.00029651,7]
[343441521,1732623051544,-275.633199,0.00029651,7]
[343441522,1732623051555,-275.6332,0.00029651,7]
[343441523,1732623051567,-1438742.03482868,0.00029651,10]
[343441541,1732623051752,-463.62,0.0002799,10]
[343441544,1732623051764,-2995.18614931,0.00029244,2]
[343441546,1732623051775,-88115.0405104,0.00029651,10]
[343445357,1732623091704,170.623898,0.00013973,2]
[343446576,1732623425722,3000.211607,0.00021999,7]
[343446579,1732623509097,273.0,0.00025,120]
[343446585,1732623878942,173.102356,0.00013973,2]
[343446587,1732624033105,-190.92523417,0.00024604,2]
[343446588,1732624033126,-1616.2944,0.00024853,2]
[343446589,1732624033158,-302.72757545,0.00025,2]
[343446590,1732624033179,-302.72757545,0.0002525,2]
[343446591,1732624033201,-302.72757545,0.000255,2]
[343446592,1732624033222,-300.0,0.00025575,2]
[343446593,1732624033242,-300.0,0.00025575,2]
[343446594,1732624033263,-936.32761267,0.00025576,2]
[343446595,1732624034142,-537.67518764,0.00025576,2]
[343446596,1732624037360,-2121.73897253,0.00025576,2]
[343446642,1732624232419,-300.0,0.00024999,2]
[343446645,1732624232431,-300.0,0.00024999,2]
[343446646,1732624232441,-183.11672382,0.00025,2]
[343446648,1732624232450,-55766.51226575,0.00025,2]
[343446650,1732624232462,-762.83208656,0.00025476,2]
[343446652,1732624232472,-452.90397525,0.00025476,2]
[343446653,1732624232481,-6823.36114985,0.00025576,2]
[343446654,1732624232533,-1193.29543881,0.00025576,2]
[343446655,1732624232545,-13287.6016385,0.00025576,2]
[343446656,1732624232554,-470.517589,0.00025946,2]
[343446657,1732624232565,-164.719639,0.00026019,2]
[343446658,1732624232574,-452.90397523,0.00026058,2]
[343446659,1732624232584,-216.429619,0.00026418,2]
[343446660,1732624232594,-470.517589,0.00026631,2]
[343446661,1732624232603,-452.90397523,0.0002664,2]
[343446662,1732624232613,-420.0,0.00027082,2]
[343446663,1732624232623,-452.90397523,0.00027222,2]
[343446664,1732624232632,-470.517589,0.00027316,2]
[343446665,1732624232642,-420.0,0.00027499,2]
[343446666,1732624232652,-452.90397523,0.00027804,2]
[343446667,1732624232663,-243.82,0.0002789,3]
[343446668,1732624232673,-731.51,0.0002789,3]
[343446669,1732624232683,-500.0,0.00027899,2]
[343446670,1732624232692,-58905.76670347,0.000279,2]
[343446671,1732624232702,-4000.0,0.000279,7]
[343446672,1732624232716,-196.015,0.000279,18]
[343446673,1732624232726,-1955.18215808,0.00028,2]
[343446674,1732624232735,-150.0,0.00028145,2]
[343446675,1732624232744,-531.0,0.00028145,2]
[343446676,1732624232753,-2378.0,0.00028145,2]
[343446677,1732624232763,-1103.0,0.00028145,2]
[343446678,1732624232772,-452.90397523,0.00028386,2]
[343446679,1732624232782,-505.93708392,0.00028473,5]
[343446680,1732624232792,-500.0,0.00028498,2]
[343446681,1732624232802,-500.0,0.00028498,2]
[343446682,1732624232811,-500.0,0.00028498,2]
[343446683,1732624232821,-500.0,0.00028498,2]
[343446684,1732624232831,-500.0,0.00028498,2]
[343446685,1732624232840,-500.0,0.00028498,2]
[343446686,1732624232850,-500.0,0.00028498,2]
[343446687,1732624232859,-488.5739707,0.00028498,2]
[343446688,1732624232869,-222000.0,0.000285,2]
[343446689,1732624232879,-153.0,0.00028685,30]
[343446690,1732624232889,-153.0,0.00028685,30]
[343446691,1732624232898,-153.0,0.00028685,30]
[343446692,1732624232907,-153.0,0.00028685,30]
[343446693,1732624232917,-153.0,0.00028685,30]
[343446694,1732624232926,-153.0,0.00028685,30]
[343446695,1732624232935,-238.07,0.000287,31]
[343446696,1732624232944,-238.07,0.000287,31]
[343446697,1732624232954,-238.07,0.000287,31]
[343446698,1732624232966,-238.07,0.000287,31]
[343446699,1732624232976,-238.07,0.000287,31]
[343446700,1732624232985,-238.07,0.000287,31]
[343446701,1732624232995,-238.07,0.000287,31]
[343446702,1732624233004,-238.07,0.000287,31]
[343446703,1732624233016,-238.07,0.000287,31]
[343446704,1732624233026,-238.07,0.000287,31]
[343446705,1732624233036,-238.07,0.000287,31]
[343446706,1732624233046,-238.07,0.000287,31]
[343446707,1732624233056,-452.90397523,0.00028968,2]
[343446708,1732624233065,-5292.75416646,0.00029204,2]
[343446709,1732624233076,-666.0,0.00029215,2]
[343446710,1732624233086,-11032.58325404,0.00029252,2]
[343446711,1732624233096,-487.64,0.0002926,3]
[343446712,1732624233106,-639.70237634,0.00029314,2]
[343446713,1732624233115,-196.22847908,0.00029314,2]
[343446714,1732624233125,-209.66840753,0.00029314,2]
[343446715,1732624233135,-196.90530377,0.00029314,2]
[343446716,1732624233144,-500.0,0.00029315,2]
[343446717,1732624233154,-189.14385017,0.00029315,2]
[343446718,1732624233163,-599.07695397,0.00029315,2]
[343446719,1732624233174,-500.0,0.00029315,2]
[343446720,1732624233184,-504.8207905,0.00029315,2]
[343446721,1732624233193,-500.0,0.00029315,2]
[343446722,1732624233204,-500.0,0.00029315,2]
[343446723,1732624233218,-500.0,0.00029315,2]
[343446724,1732624233228,-500.0,0.00029315,2]
[343446725,1732624233238,-500.0,0.00029315,2]
[343446726,1732624233248,-500.0,0.00029315,2]
[343446727,1732624233258,-500.0,0.00029315,2]
[343446728,1732624233268,-500.0,0.00029315,2]
[343446729,1732624233279,-238.9147553,0.00029315,2]
[343446730,1732624233289,-200.0,0.00029315,2]
[343446731,1732624233299,-500.0,0.00029315,2]
[343446732,1732624233308,-310.30029368,0.00029315,2]
[343446733,1732624233318,-500.0,0.00029315,2]
[343446734,1732624233327,-500.0,0.00029315,2]
[343446735,1732624233337,-192.02030489,0.00029315,2]
[343446736,1732624233349,-500.0,0.00029315,2]
[343446737,1732624233358,-500.0,0.00029315,2]
[343446738,1732624233368,-319.86,0.00029315,2]
[343446739,1732624233377,-500.0,0.00029315,2]
[343446740,1732624233386,-494.24768574,0.00029315,2]
[343446741,1732624233396,-500.0,0.00029315,2]
[343446742,1732624233406,-500.0,0.00029315,2]
[343446743,1732624233416,-500.0,0.00029315,2]
[343446744,1732624233426,-503.45166271,0.00029315,2]
[343446745,1732624233435,-501.25209121,0.00029315,2]
[343446746,1732624233444,-500.0,0.00029315,2]
[343446747,1732624233454,-500.0,0.00029315,2]
[343446748,1732624233466,-500.0,0.00029315,2]
[343446749,1732624233475,-500.0,0.00029315,2]
[343446750,1732624233485,-500.0,0.00029315,2]
[343446751,1732624233495,-500.0,0.00029315,2]
[343446752,1732624233505,-301.45071157,0.00029315,2]
[343446753,1732624233515,-500.0,0.00029315,2]
[343446754,1732624233527,-500.0,0.00029315,2]
[343446755,1732624233536,-500.0,0.00029315,2]
[343446756,1732624233546,-500.0,0.00029315,2]
[343446757,1732624233556,-500.0,0.00029315,2]
[343446758,1732624233566,-500.0,0.00029315,2]
[343446759,1732624233576,-500.0,0.00029315,2]
[343446760,1732624233586,-500.0,0.00029315,2]
[343446761,1732624233596,-636.63775166,0.00029315,2]
[343446762,1732624233606,-569.59462323,0.00029315,2]
[343446763,1732624233616,-500.0,0.00029315,2]
[343446764,1732624233626,-500.0,0.00029315,2]
[343446765,1732624233636,-546.51039559,0.00029315,2]
[343446766,1732624233646,-500.0,0.00029315,2]
[343446767,1732624233657,-416.5087139,0.00029315,2]
[343446768,1732624233668,-241.66569832,0.00029315,2]
[343446769,1732624233678,-578.33,0.00029315,2]
[343446770,1732624233688,-500.0,0.00029315,2]
[343446771,1732624233698,-500.0,0.00029315,2]
[343446772,1732624233713,-500.0,0.00029315,2]
[343446773,1732624233723,-500.0,0.00029315,2]
[343446774,1732624233732,-500.0,0.00029315,2]
[343446775,1732624233742,-500.0,0.00029315,2]
[343446776,1732624233750,-500.0,0.00029315,2]
[343446777,1732624233760,-500.0,0.00029315,2]
[343446778,1732624233770,-500.0,0.00029315,2]
[343446779,1732624233780,-500.0,0.00029315,2]
[343446780,1732624233789,-412.61,0.00029315,2]
[343446781,1732624233799,-501.67653148,0.00029315,2]
[343446782,1732624233809,-500.0,0.00029315,2]
[343446783,1732624233819,-482.27913764,0.00029315,2]
[343446784,1732624233830,-500.0,0.00029315,2]
[343446785,1732624233842,-500.0,0.00029315,2]
[343446786,1732624233852,-500.0,0.00029315,2]
[343446787,1732624233861,-500.0,0.00029315,2]
[343446788,1732624233871,-500.0,0.00029315,2]
[343446789,1732624233881,-500.0,0.00029315,2]
[343446790,1732624233891,-500.0,0.00029315,2]
[343446791,1732624233901,-500.0,0.00029315,2]
[343446792,1732624233912,-500.0,0.00029315,2]
[343446793,1732624233922,-555.96813552,0.00029315,2]
[343446794,1732624233932,-507.11190617,0.00029315,2]
[343446795,1732624233942,-504.55716376,0.00029315,2]
[343446796,1732624233952,-505.742405,0.00029315,2]
[343446797,1732624233966,-500.0,0.00029315,2]
[343446798,1732624233975,-500.0,0.00029315,2]
[343446799,1732624233986,-500.0,0.00029315,2]
[343446800,1732624233996,-345.90046145,0.00029315,2]
[343446801,1732624234006,-503.68766545,0.00029315,2]
[343446802,1732624234017,-500.84011006,0.00029315,2]
[343446803,1732624234026,-507.2401626,0.00029315,2]
[343446804,1732624234036,-502.65193505,0.00029315,2]
[343446805,1732624234046,-500.0,0.00029315,2]
[343446806,1732624234056,-500.0,0.00029315,2]
[343446807,1732624234066,-500.0,0.00029315,2]
[343446808,1732624234075,-500.0,0.00029315,2]
[343446809,1732624234086,-500.0,0.00029315,2]
[343446810,1732624234096,-500.0,0.00029315,2]
[343446811,1732624234105,-500.0,0.00029315,2]
[343446812,1732624234115,-500.0,0.00029315,2]
[343446813,1732624234125,-500.0,0.00029315,2]
[343446814,1732624234135,-500.0,0.00029315,2]
[343446815,1732624234145,-500.0,0.00029315,2]
[343446816,1732624234155,-500.0,0.00029315,2]
[343446817,1732624234165,-417.36928776,0.00029315,2]
[343446818,1732624234174,-500.0,0.00029315,2]
[343446819,1732624234184,-500.0,0.00029315,2]
[343446820,1732624234195,-500.0,0.00029315,2]
[343446821,1732624234210,-502.44671074,0.00029315,2]
[343446822,1732624234219,-500.0,0.00029315,2]
[343446823,1732624234229,-500.0,0.00029315,2]
[343446824,1732624234238,-500.0,0.00029315,2]
[343446825,1732624234248,-500.31302216,0.00029315,2]
[343446826,1732624234258,-500.0,0.00029315,2]
[343446827,1732624234268,-500.0,0.00029315,2]
[343446828,1732624234278,-643.8676419,0.00029315,2]
[343446829,1732624234288,-500.0,0.00029315,2]
[343446830,1732624234298,-502.67179994,0.00029315,2]
[343446831,1732624234308,-500.0,0.00029315,2]
[343446832,1732624234318,-511.57798395,0.00029315,2]
[343446833,1732624234327,-500.0,0.00029315,2]
[343446834,1732624234337,-500.0,0.00029315,2]
[343446835,1732624234347,-500.0,0.00029315,2]
[343446836,1732624234357,-500.0,0.00029315,2]
[343446837,1732624234367,-500.0,0.00029315,2]
[343446838,1732624234376,-500.0,0.00029315,2]
[343446839,1732624234386,-500.0,0.00029315,2]
[343446840,1732624234396,-500.0,0.00029315,2]
[343446841,1732624234405,-500.0,0.00029315,2]
[343446842,1732624234414,-500.0,0.00029315,2]
[343446843,1732624234424,-500.0,0.00029315,2]
[343446844,1732624234434,-460.09507861,0.00029315,2]
[343446845,1732624234444,-503.06333038,0.00029315,2]
[343446846,1732624234453,-500.0,0.00029315,2]
[343446847,1732624234473,-502.0135951,0.00029315,2]
[343446848,1732624234483,-500.0,0.00029315,2]
[343446849,1732624234492,-500.0,0.00029315,2]
[343446850,1732624234502,-500.0,0.00029315,2]
[343446851,1732624234512,-500.0,0.00029315,2]
[343446852,1732624234526,-238.21489045,0.00029315,2]
[343446853,1732624234535,-500.0,0.00029315,2]
[343446854,1732624234545,-500.0,0.00029315,2]
[343446855,1732624234555,-500.0,0.00029315,2]
[343446856,1732624234564,-500.0,0.00029315,2]
[343446857,1732624234574,-500.0,0.00029315,2]
[343446858,1732624234583,-479.2709682,0.00029315,2]
[343446859,1732624234592,-500.0,0.00029315,2]
[343446860,1732624234603,-501.88024791,0.00029315,2]
[343446861,1732624234613,-500.0,0.00029315,2]
[343446862,1732624234623,-504.44821172,0.00029315,2]
[343446863,1732624234633,-500.0,0.00029315,2]
[343446864,1732624234642,-501.59008633,0.00029315,2]
[343446865,1732624234652,-500.0,0.00029315,2]
[343446866,1732624234662,-501.92466093,0.00029315,2]
[343446867,1732624234672,-500.0,0.00029315,2]
[343446868,1732624234682,-505.15871236,0.00029315,2]
[343446869,1732624234693,-500.0,0.00029315,2]
[343446870,1732624234702,-500.91480236,0.00029315,2]
[343446871,1732624234720,-500.0,0.00029315,2]
[343446872,1732624234730,-514.18188792,0.00029315,2]
[343446873,1732624234739,-502.56046595,0.00029315,2]
[343446874,1732624234749,-500.0,0.00029315,2]
[343446875,1732624234759,-500.0,0.00029315,2]
[343446876,1732624234769,-329.93437976,0.00029315,2]
[343446877,1732624234779,-500.0,0.00029315,2]
[343446878,1732624234789,-500.85922844,0.00029315,2]
[343446879,1732624234799,-500.0,0.00029315,2]
[343446880,1732624234809,-507.07301343,0.00029315,2]
[343446881,1732624234819,-500.0,0.00029315,2]
[343446882,1732624234829,-286.47515019,0.00029315,2]
[343446883,1732624234839,-500.0,0.00029315,2]
[343446884,1732624234849,-504.58305204,0.00029315,2]
[343446885,1732624234858,-506.40088923,0.00029315,2]
[343446886,1732624234868,-500.0,0.00029315,2]
[343446887,1732624234878,-500.0,0.00029315,2]
[343446888,1732624234889,-500.0,0.00029315,2]
[343446889,1732624234899,-500.0,0.00029315,2]
[343446890,1732624234909,-500.0,0.00029315,2]
[343446891,1732624234919,-436.7685091,0.00029315,2]
[343446892,1732624234928,-500.0,0.00029315,2]
[343446893,1732624234938,-500.0,0.00029315,2]
[343446894,1732624234948,-500.0,0.00029315,2]
[343446895,1732624234966,-500.0,0.00029315,2]
[343446896,1732624234976,-299.88058945,0.00029315,2]
[343446897,1732624234986,-500.0,0.00029315,2]
[343446898,1732624234995,-528.42028099,0.00029315,2]
[343446899,1732624235005,-500.0,0.00029315,2]
[343446900,1732624235110,-500.0,0.00029315,2]
[343446901,1732624235122,-500.0,0.00029315,2]
[343446902,1732624235132,-571.85492203,0.00029315,2]
[343446903,1732624235142,-500.0,0.00029315,2]
[343446904,1732624235154,-500.0,0.00029315,2]
[343446905,1732624235163,-500.0,0.00029315,2]
[343446906,1732624235173,-292.52057741,0.00029315,2]
[343446907,1732624235183,-500.0,0.00029315,2]
[343446908,1732624235193,-500.0,0.00029315,2]
[343446909,1732624235203,-500.0,0.00029315,2]
[343446910,1732624235218,-500.0,0.00029315,2]
[343446911,1732624235227,-500.0,0.00029315,2]
[343446912,1732624235236,-500.0,0.00029315,2]
[343446913,1732624235245,-500.0,0.00029315,2]
[343446914,1732624235255,-500.0,0.00029315,2]
[343446915,1732624235264,-500.0,0.00029315,2]
[343446916,1732624235274,-500.0,0.00029315,2]
[343446917,1732624235284,-500.0,0.00029315,2]
[343446918,1732624235294,-500.0,0.00029315,2]
[343446919,1732624235303,-500.0,0.00029315,2]
[343446920,1732624235312,-500.0,0.00029315,2]
[343446921,1732624235322,-300.29827392,0.00029315,2]
[343446922,1732624235331,-1910.59,0.00029315,2]
[343446923,1732624235341,-1910.59,0.00029315,2]
[343446924,1732624235351,-1910.59,0.00029315,2]
[343446925,1732624235360,-1910.59,0.00029315,2]
[343446926,1732624235369,-1910.59,0.00029315,2]
[343446927,1732624235378,-1910.59,0.00029315,2]
[343446928,1732624235388,-1910.59,0.00029315,2]
[343446929,1732624235398,-1910.59,0.00029315,2]
[343446930,1732624235407,-1910.59,0.00029315,2]
[343446931,1732624235417,-1910.59,0.00029315,2]
[343446932,1732624235426,-1910.59,0.00029315,2]
[343446933,1732624235436,-1910.59,0.00029315,2]
[343446934,1732624235445,-1910.59,0.00029315,2]
[343446935,1732624235455,-1910.59,0.00029315,2]
[343446936,1732624235471,-1910.59,0.00029315,2]
[343446937,1732624235481,-1910.59,0.00029315,2]
[343446938,1732624235490,-1910.59,0.00029315,2]
[343446939,1732624235500,-1910.59,0.00029315,2]
[343446940,1732624235514,-1910.59,0.00029315,2]
[343446941,1732624235523,-1910.59,0.00029315,2]
[343446942,1732624235533,-1910.59,0.00029315,2]
[343446943,1732624235542,-1910.59,0.00029315,2]
[343446944,1732624235553,-1910.59,0.00029315,2]
[343446945,1732624235563,-1910.75244272,0.00029315,2]
[343446946,1732624235573,-500.0,0.00029315,2]
[343446947,1732624235583,-500.0,0.00029315,2]
[343446948,1732624235592,-500.0,0.00029315,2]
[343446949,1732624235602,-500.0,0.00029315,2]
[343446950,1732624235612,-500.0,0.00029315,2]
[343446951,1732624235621,-587.0,0.00029339,2]
[343446952,1732624235631,-5292.75416647,0.0002934,2]
[343446953,1732624235641,-500.0,0.00029373,5]
[343446954,1732624235651,-259.87778752,0.00029373,5]
[343446955,1732624235660,-6891.70377147,0.000294,7]
[343446956,1732624235669,-452.90397523,0.0002955,2]
[343446957,1732624235682,-500.0,0.00029552,11]
[343446958,1732624235696,-500.8545137,0.00029584,11]
[343446959,1732624235706,-151.0,0.00029649,7]
[343446960,1732624235722,-289.996219,0.00029649,7]
[343446961,1732624235733,-151.0,0.00029649,7]
[343446962,1732624235743,-151.982572,0.00029649,7]
[343446963,1732624235753,-153.421165,0.00029649,7]
[343446964,1732624235763,-151.0,0.00029649,7]
[343446965,1732624235773,-459.17199,0.00029649,7]
[343446966,1732624235782,-459.17199,0.00029649,7]
[343446967,1732624235792,-459.17199,0.00029649,7]
[343446968,1732624235802,-459.17199,0.00029649,7]
[343446969,1732624235812,-459.17199,0.00029649,7]
[343446970,1732624235821,-459.17199,0.00029649,7]
[343446971,1732624235831,-459.17199,0.00029649,7]
[343446972,1732624235840,-459.17199,0.00029649,7]
[343446973,1732624235850,-459.17199,0.00029649,7]
[343446974,1732624235859,-459.17199,0.00029649,7]
[343446975,1732624235869,-459.17199,0.00029649,7]
[343446976,1732624235878,-459.17199,0.00029649,7]
[343446977,1732624235888,-459.17199,0.00029649,7]
[343446978,1732624235898,-459.17199,0.00029649,7]
[343446979,1732624235907,-459.17199,0.00029649,7]
[343446980,1732624235916,-459.17199,0.00029649,7]
[343446981,1732624235925,-459.17199,0.00029649,7]
[343446982,1732624235935,-459.17199,0.00029649,7]
[343446983,1732624235944,-459.17199,0.00029649,7]
[343446984,1732624235954,-459.172,0.00029649,7]
[343446985,1732624235974,-151.0,0.00029649,7]
[343446986,1732624235984,-151.0,0.00029649,7]
[343446987,1732624235994,-151.0,0.00029649,7]
[343446988,1732624236003,-151.0,0.00029649,7]
[343446989,1732624236015,-151.0,0.00029649,7]
[343446990,1732624236025,-151.0,0.00029649,7]
[343446991,1732624236034,-151.0,0.00029649,7]
[343446992,1732624236044,-151.0,0.00029649,7]
[343446993,1732624236053,-210.647302,0.00029649,7]
[343446994,1732624236063,-210.647302,0.00029649,7]
[343446995,1732624236072,-210.647302,0.00029649,7]
[343446996,1732624236082,-210.647302,0.00029649,7]
[343446997,1732624236091,-210.647302,0.00029649,7]
[343446998,1732624236100,-210.647302,0.00029649,7]
[343446999,1732624236109,-210.647302,0.00029649,7]
[343447000,1732624236118,-210.647302,0.00029649,7]
[343447001,1732624236127,-210.647302,0.00029649,7]
[343447002,1732624236137,-151.0,0.00029649,7]
[343447003,1732624236147,-210.647302,0.00029649,7]
[343447004,1732624236156,-151.0,0.00029649,7]
[343447005,1732624236165,-210.647302,0.00029649,7]
[343447006,1732624236174,-210.647302,0.00029649,7]
[343447007,1732624236183,-210.647302,0.00029649,7]
[343447008,1732624236193,-210.647302,0.00029649,7]
[343447009,1732624236202,-210.647302,0.00029649,7]
[343447010,1732624236218,-210.647302,0.00029649,7]
[343447011,1732624236228,-210.647302,0.00029649,7]
[343447012,1732624236238,-210.647302,0.00029649,7]
[343447013,1732624236247,-210.647302,0.00029649,7]
[343447014,1732624236257,-151.0,0.00029649,7]
[343447015,1732624236266,-210.647312,0.00029649,7]
[343447016,1732624236276,-151.0,0.00029649,7]
[343447017,1732624236285,-151.0,0.00029649,7]
[343447018,1732624236295,-151.0,0.00029649,7]
[343447019,1732624236304,-151.0,0.00029649,7]
[343447020,1732624236313,-151.0,0.00029649,7]
[343447021,1732624236323,-151.0,0.00029649,7]
[343447022,1732624236333,-151.0,0.00029649,7]
[343447023,1732624236342,-151.0,0.00029649,7]
[343447024,1732624236351,-192.3786,0.00029649,7]
[343447025,1732624236360,-151.0,0.00029649,7]
[343447026,1732624236370,-1652.26402239,0.00029649,2]
[343447027,1732624236379,-534932.2630792,0.0002965,10]
[343447028,1732624236389,-5615076.80483318,0.0002965,10]
[343447077,1732624238781,-500.0,0.00029373,5]
[343447079,1732624238791,-352.09,0.0002964,10]
[343447081,1732624238800,-1027.9099995,0.0002965,10]
[343447273,1732624240455,-14459.64809069,0.0002965,10]
[343447595,1732624243558,-46189.10935067,0.0002965,10]
[343447597,1732624243570,-3785.3,0.0002965,10]
[343447609,1732624243671,-364613.5534895,0.0002965,10]
[343447611,1732624243683,-1555.72193088,0.0002965,10]
[343447614,1732624243695,-477.73806912,0.0002965,10]
[343447616,1732624243706,-534.21798932,0.0002965,10]
[343447619,1732624243728,-19439.497106,0.0002965,10]
[343447884,1732624246525,-559.92,0.0002964,3]
[343447886,1732624246535,-19555.0584,0.0002965,10]
[343447889,1732624246546,-19250.14589403,0.0002965,10]
[343452206,1732624617653,174.9612,0.00013973,2]
[343452211,1732625233110,-153.54672734,0.00024611,2]
[343452212,1732625233136,-195.08598739,0.00024711,2]
[343452213,1732625233158,-312.79067075,0.00024711,2]
[343452214,1732625233180,-183.4748385,0.00024811,2]
[343452215,1732625233201,-166.789344,0.00025952,2]
[343452216,1732625233223,-216.42962,0.00026195,2]
[343452217,1732625233244,-300.0,0.00026315,2]
[343452218,1732625233265,-300.0,0.00026315,2]
[343452219,1732625233286,-4365.00545632,0.00026315,2]
[343452220,1732625252130,-196.3883239,0.00026216,2]
[343452221,1732625252151,-7550.99454368,0.00026315,2]
[343452222,1732625252173,-1759.78265669,0.00026316,2]
[343452223,1732625421455,176.355333,0.00013973,2]
[343452419,1732625436369,-164.556449,0.0002532,2]
[343452421,1732625436379,-2247.59246219,0.00025554,2]
[343452428,1732625436429,-1053.138134,0.00025554,2]
[343452673,1732625439018,-217.82975291,0.00025554,2]
[343452675,1732625439028,-300.0,0.00026315,2]
[343452677,1732625439037,-300.0,0.00026315,2]
[343452679,1732625439047,-18294.05618589,0.00026316,2]
[343452681,1732625439064,-4846.16115742,0.00026316,2]
[343452683,1732625439074,-250.0,0.00026406,2]
[343452685,1732625439085,-1886.8627497,0.00026455,2]
[343452687,1732625439095,-224.613,0.00027391,16]
[343452689,1732625439104,-318.94906414,0.0002754,2]
[343452691,1732625439113,-184.92455324,0.00027799,2]
[343452693,1732625439122,-500.0,0.00027899,2]
[343452695,1732625439132,-352.63577281,0.00028398,2]
[343452697,1732625439141,-183.11672379,0.00028399,2]
[343452698,1732625439150,-7796.20274731,0.00028399,2]
[343452701,1732625439162,-5000.0,0.00028399,2]
[343452783,1732625440639,-1417.42675004,0.00028399,2]
[343453180,1732625444739,-196.3883239,0.00026306,2]
[343453182,1732625444748,-1965.5630383,0.00028399,2]
[343453184,1732625444760,-1615.19298301,0.00028399,2]
[343453190,1732625444799,-9732.43600448,0.00028399,2]
[343453197,1732625444862,-27689.89676874,0.00028399,2]
[343453200,1732625444873,-420.0,0.00028469,2]
[343453202,1732625444882,-150.0,0.00028589,2]
[343453203,1732625444891,-531.0,0.00028589,2]
[343453206,1732625444901,-1103.0,0.00028589,2]
[343453210,1732625444915,-2378.0,0.00028589,2]
[343453212,1732625444924,-184.92455324,0.00028674,2]
[343453214,1732625444933,-209.51,0.000287,31]
[343453217,1732625444942,-209.51,0.000287,31]
[343453220,1732625444951,-209.51,0.000287,31]
[343453222,1732625444960,-209.51,0.000287,31]
[343453225,1732625444969,-209.51,0.000287,31]
[343453227,1732625444979,-209.51,0.000287,31]
[343453229,1732625444990,-209.51,0.000287,31]
[343453231,1732625445000,-209.51,0.000287,31]
[343453233,1732625445010,-209.51,0.000287,31]
[343453236,1732625445019,-209.51,0.000287,31]
[343453238,1732625445028,-209.51,0.000287,31]